[Event "Titled Tuesday Blitz March 14 Early 2023"]
[White "Pham, Le Thao Nguyen"]
[Black "Chakravarthi Reddy, M"]
[WhiteFideId "12401226"]
[BlackFideId "25009532"]
[WhiteElo "2282"]
[BlackElo "2201"]
[Result "1/2-1/2"]
[Round "04"]
[TimeControl "180+2"]
[Date "2023.03.14"]
[WhiteClock "0:00:02"]
[BlackClock "0:00:04"]

1. Nf3 {[%clk 0:02:57]}  d5 {[%clk 0:02:59]} 2. d4 {[%clk 0:02:56]}  Nf6 {[%clk 0:03:00]} 3. c4 {[%clk 0:02:56]}  c6 {[%clk 0:03:00]} 4. Nc3 {[%clk 0:02:55]}  e6 {[%clk 0:03:00]} 5. e3 {[%clk 0:02:47]}  Nbd7 {[%clk 0:03:00]} 6. Qc2 {[%clk 0:02:47]}  Bd6 {[%clk 0:02:57]} 7. b3 {[%clk 0:02:46]}  O-O {[%clk 0:02:57]} 8. Bb2 {[%clk 0:02:45]}  b6 {[%clk 0:02:58]} 9. cxd5 {[%clk 0:02:40]}  exd5 {[%clk 0:02:46]} 10. Bd3 {[%clk 0:02:35]}  c5 {[%clk 0:02:41]} 11. O-O {[%clk 0:02:32]}  Bb7 {[%clk 0:02:40]} 12. Nb5 {[%clk 0:01:37]}  Bb8 {[%clk 0:02:21]} 13. Ne5 {[%clk 0:01:31]}  a6 {[%clk 0:01:59]} 14. Na3 {[%clk 0:01:26]}  Bd6 {[%clk 0:01:58]} 15. f4 {[%clk 0:01:25]}  Rc8 {[%clk 0:01:53]} 16. Qe2 {[%clk 0:01:20]}  Ne4 {[%clk 0:01:49]} 17. Bxa6 {[%clk 0:01:14]}  Bxa6 {[%clk 0:01:37]} 18. Qxa6 {[%clk 0:01:15]}  c4 {[%clk 0:01:20]} 19. Nb5 {[%clk 0:00:48]}  Ra8 {[%clk 0:01:06]} 20. Qb7 {[%clk 0:00:46]}  Ndf6 {[%clk 0:00:37]} 21. bxc4 {[%clk 0:00:37]}  dxc4 {[%clk 0:00:30]} 22. Nxc4 {[%clk 0:00:36]}  Bb4 {[%clk 0:00:17]} 23. Ne5 {[%clk 0:00:19]}  Rc8 {[%clk 0:00:13]} 24. Rac1 {[%clk 0:00:14]}  Bd2 {[%clk 0:00:13]} 25. Rxc8 {[%clk 0:00:13]}  Bxe3+ {[%clk 0:00:14]} 26. Kh1 {[%clk 0:00:13]}  Qxc8 {[%clk 0:00:14]} 27. Qxc8 {[%clk 0:00:13]}  Rxc8 {[%clk 0:00:15]} 28. g3 {[%clk 0:00:13]}  Rc2 {[%clk 0:00:14]} 29. Ba3 {[%clk 0:00:12]}  h5 {[%clk 0:00:09]} 30. Nf3 {[%clk 0:00:07]}  Ng4 {[%clk 0:00:08]} 31. d5 {[%clk 0:00:04]}  Rxa2 {[%clk 0:00:07]} 32. Bc1 {[%clk 0:00:03]}  Nef2+ {[%clk 0:00:06]} 33. Kg2 {[%clk 0:00:03]}  Nd3+ {[%clk 0:00:06]} 34. Kh3 {[%clk 0:00:03]}  Nxc1 {[%clk 0:00:06]} 35. d6 {[%clk 0:00:04]}  Ra8 {[%clk 0:00:05]} 36. d7 {[%clk 0:00:03]}  Rd8 {[%clk 0:00:05]} 37. Rd1 {[%clk 0:00:04]}  Ne2 {[%clk 0:00:05]} 38. Na7 {[%clk 0:00:03]}  Nf6 {[%clk 0:00:05]} 39. Re1 {[%clk 0:00:02]}  Rxd7 {[%clk 0:00:04]} 40. Nc6 {[%clk 0:00:02]}  Rc7 {[%clk 0:00:03]} 41. Nb4 {[%clk 0:00:02]}  Bd2 {[%clk 0:00:02]} 42. Rxe2 {[%clk 0:00:02]}  Bxb4 {[%clk 0:00:02]} 43. Rb2 {[%clk 0:00:03]}  Bc5 {[%clk 0:00:02]} 44. Rb5 {[%clk 0:00:03]}  g6 {[%clk 0:00:02]} 45. Ne5 {[%clk 0:00:03]}  Ng4 {[%clk 0:00:02]} 46. Nxg4 {[%clk 0:00:03]}  hxg4+ {[%clk 0:00:03]} 47. Kxg4 {[%clk 0:00:04]}  Rd7 {[%clk 0:00:04]} 48. h4 {[%clk 0:00:04]}  Rd2 {[%clk 0:00:05]} 49. Rb3 {[%clk 0:00:04]}  Kg7 {[%clk 0:00:05]} 50. Rc3 {[%clk 0:00:04]}  Rd4 {[%clk 0:00:05]} 51. Rb3 {[%clk 0:00:04]}  Rb4 {[%clk 0:00:06]} 52. Rd3 {[%clk 0:00:04]}  Bd4 {[%clk 0:00:06]} 53. h5 {[%clk 0:00:04]}  gxh5+ {[%clk 0:00:06]} 54. Kxh5 {[%clk 0:00:05]}  b5 {[%clk 0:00:05]} 55. g4 {[%clk 0:00:05]}  Rc4 {[%clk 0:00:05]} 56. g5 {[%clk 0:00:05]}  f6 {[%clk 0:00:05]} 57. g6 {[%clk 0:00:03]}  b4 {[%clk 0:00:05]} 58. Rf3 {[%clk 0:00:02]}  Rc3 {[%clk 0:00:04]} 59. Rf1 {[%clk 0:00:01]}  b3 {[%clk 0:00:04]} 60. Re1 {[%clk 0:00:01]}  Bc5 {[%clk 0:00:04]} 61. Rd1 {[%clk 0:00:01]}  b2 {[%clk 0:00:01]} 62. Rd7+ {[%clk 0:00:02]}  Kg8 {[%clk 0:00:02]} 63. Rb7 {[%clk 0:00:02]}  Rc2 {[%clk 0:00:01]} 64. Rb8+ {[%clk 0:00:02]}  Bf8 {[%clk 0:00:01]} 65. Rb7 {[%clk 0:00:03]}  Rh2+ {[%clk 0:00:01]} 66. Kg4 {[%clk 0:00:03]}  Rg2+ {[%clk 0:00:02]} 67. Kf5 {[%clk 0:00:04]}  Rc2 {[%clk 0:00:02]} 68. Kxf6 {[%clk 0:00:03]}  Rc6+ {[%clk 0:00:02]} 69. Kg5 {[%clk 0:00:04]}  Rc5+ {[%clk 0:00:03]} 70. f5 {[%clk 0:00:04]}  Rc2 {[%clk 0:00:03]} 71. f6 {[%clk 0:00:04]}  Rg2+ {[%clk 0:00:03]} 72. Kf5 {[%clk 0:00:05]}  Rf2+ {[%clk 0:00:03]} 73. Ke6 {[%clk 0:00:05]}  Re2+ {[%clk 0:00:04]} 74. Kd5 {[%clk 0:00:06]}  Rd2+ {[%clk 0:00:04]} 75. Ke4 {[%clk 0:00:06]}  Re2+ {[%clk 0:00:04]} 76. Kd3 {[%clk 0:00:07]}  Rf2 {[%clk 0:00:04]} 77. g7 {[%clk 0:00:05]}  Bxg7 {[%clk 0:00:02]} 78. fxg7 {[%clk 0:00:04]}  Rf7 {[%clk 0:00:02]} 79. Rxb2 {[%clk 0:00:03]}  Kxg7 {[%clk 0:00:02]} 80. Re2 {[%clk 0:00:04]}  Rd7+ {[%clk 0:00:03]} 81. Ke3 {[%clk 0:00:04]}  Re7+ {[%clk 0:00:03]} 82. Kf2 {[%clk 0:00:05]}  Rf7+ {[%clk 0:00:04]} 83. Kg2 {[%clk 0:00:02]} 1/2-1/2


[Site "https://www.chess.com"]

[Event "Titled Tuesday Blitz March 14 Early 2023"]
[White "Miszler, Levente"]
[Black "Bennett, David"]
[WhiteFideId "763276"]
[BlackFideId "2028271"]
[WhiteElo "2176"]
[BlackElo "2131"]
[Result "1-0"]
[Round "04"]
[TimeControl "180+2"]
[Date "2023.03.14"]
[WhiteClock "0:00:52"]
[BlackClock "0:00:14"]

1. d4 {[%clk 0:03:00]}  d6 {[%clk 0:01:12]} 2. Nf3 {[%clk 0:02:46]}  e6 {[%clk 0:01:11]} 3. g3 {[%clk 0:02:47]}  Nd7 {[%clk 0:01:11]} 4. Bg2 {[%clk 0:02:47]}  Ne7 {[%clk 0:01:12]} 5. O-O {[%clk 0:02:48]}  g6 {[%clk 0:01:12]} 6. c4 {[%clk 0:02:49]}  Bg7 {[%clk 0:01:12]} 7. Nc3 {[%clk 0:02:49]}  O-O {[%clk 0:01:12]} 8. e4 {[%clk 0:02:50]}  b6 {[%clk 0:01:12]} 9. Qc2 {[%clk 0:02:47]}  Bb7 {[%clk 0:01:11]} 10. Be3 {[%clk 0:02:47]}  h6 {[%clk 0:01:11]} 11. Rad1 {[%clk 0:02:46]}  a6 {[%clk 0:01:10]} 12. Nd2 {[%clk 0:02:42]}  c5 {[%clk 0:01:07]} 13. Nf3 {[%clk 0:02:36]}  Qc7 {[%clk 0:01:05]} 14. Qd2 {[%clk 0:02:29]}  Kh7 {[%clk 0:00:58]} 15. b3 {[%clk 0:02:28]}  Rfd8 {[%clk 0:00:57]} 16. d5 {[%clk 0:02:24]}  e5 {[%clk 0:00:54]} 17. Ne1 {[%clk 0:02:23]}  Rf8 {[%clk 0:00:51]} 18. f4 {[%clk 0:02:24]}  exf4 {[%clk 0:00:51]} 19. gxf4 {[%clk 0:02:21]}  f5 {[%clk 0:00:51]} 20. Kh1 {[%clk 0:02:19]}  fxe4 {[%clk 0:00:50]} 21. Bxe4 {[%clk 0:02:19]}  Nf5 {[%clk 0:00:50]} 22. Rg1 {[%clk 0:02:18]}  Rae8 {[%clk 0:00:49]} 23. Nf3 {[%clk 0:02:09]}  Nf6 {[%clk 0:00:45]} 24. Bxf5 {[%clk 0:02:06]}  gxf5 {[%clk 0:00:45]} 25. Nh4 {[%clk 0:02:06]}  Ne4 {[%clk 0:00:41]} 26. Nxe4 {[%clk 0:02:03]}  Rxe4 {[%clk 0:00:41]} 27. Rg3 {[%clk 0:01:58]}  Qe7 {[%clk 0:00:37]} 28. Ng6 {[%clk 0:01:55]}  Qe8 {[%clk 0:00:33]} 29. Nxf8+ {[%clk 0:01:54]}  Bxf8 {[%clk 0:00:34]} 30. Rdg1 {[%clk 0:01:53]}  b5 {[%clk 0:00:33]} 31. Qg2 {[%clk 0:01:41]}  Qf7 {[%clk 0:00:27]} 32. Bd2 {[%clk 0:01:26]}  bxc4 {[%clk 0:00:19]} 33. bxc4 {[%clk 0:01:27]}  h5 {[%clk 0:00:19]} 34. Bc3 {[%clk 0:01:27]}  Rxc4 {[%clk 0:00:19]} 35. Rd3 {[%clk 0:01:13]}  Rxc3 {[%clk 0:00:18]} 36. Rxc3 {[%clk 0:01:14]}  Bxd5 {[%clk 0:00:18]} 37. Rf3 {[%clk 0:01:13]}  Qb7 {[%clk 0:00:17]} 38. Qg6+ {[%clk 0:01:01]}  Kh8 {[%clk 0:00:17]} 39. Qxh5+ {[%clk 0:00:59]}  Qh7 {[%clk 0:00:16]} 40. Qxh7+ {[%clk 0:00:59]}  Kxh7 {[%clk 0:00:17]} 41. Kg2 {[%clk 0:01:00]}  Bh6 {[%clk 0:00:16]} 42. Rd1 {[%clk 0:00:58]}  Bxf3+ {[%clk 0:00:16]} 43. Kxf3 {[%clk 0:00:59]}  Bf8 {[%clk 0:00:17]} 44. Rb1 {[%clk 0:00:55]}  Kg6 {[%clk 0:00:16]} 45. Rb6 {[%clk 0:00:55]}  Kf6 {[%clk 0:00:16]} 46. Rxa6 {[%clk 0:00:55]}  Ke6 {[%clk 0:00:16]} 47. Ra8 {[%clk 0:00:55]}  Be7 {[%clk 0:00:16]} 48. a4 {[%clk 0:00:56]}  d5 {[%clk 0:00:16]} 49. a5 {[%clk 0:00:55]}  c4 {[%clk 0:00:16]} 50. a6 {[%clk 0:00:54]}  c3 {[%clk 0:00:14]} 51. Rc8 {[%clk 0:00:53]}  Kd7 {[%clk 0:00:14]} 52. Rxc3 {[%clk 0:00:52]} 1-0


[Site "https://www.chess.com"]

[Event "Titled Tuesday Blitz March 14 Early 2023"]
[White "Quispe Santacruz, Javier"]
[Black "Senft, Sean"]
[WhiteFideId "3800920"]
[BlackFideId "2044960"]
[WhiteElo "1875"]
[BlackElo "1989"]
[Result "0-1"]
[Round "04"]
[TimeControl "180+2"]
[Date "2023.03.14"]
[WhiteClock "0:01:58"]
[BlackClock "0:02:17"]

1. d4 {[%clk 0:02:53]}  d5 {[%clk 0:03:00]} 2. c4 {[%clk 0:02:53]}  c6 {[%clk 0:03:00]} 3. Nf3 {[%clk 0:02:53]}  Nf6 {[%clk 0:03:01]} 4. e3 {[%clk 0:02:51]}  a6 {[%clk 0:03:01]} 5. cxd5 {[%clk 0:02:49]}  cxd5 {[%clk 0:03:02]} 6. Nc3 {[%clk 0:02:49]}  Nc6 {[%clk 0:03:02]} 7. Bd3 {[%clk 0:02:47]}  Bg4 {[%clk 0:03:02]} 8. h3 {[%clk 0:02:47]}  Bh5 {[%clk 0:03:03]} 9. O-O {[%clk 0:02:46]}  e6 {[%clk 0:03:03]} 10. a3 {[%clk 0:02:45]}  Bd6 {[%clk 0:03:03]} 11. b4 {[%clk 0:02:45]}  O-O {[%clk 0:03:01]} 12. Bb2 {[%clk 0:02:45]}  Rc8 {[%clk 0:02:56]} 13. Rc1 {[%clk 0:02:46]}  Bb8 {[%clk 0:02:48]} 14. Na4 {[%clk 0:02:40]}  Qd6 {[%clk 0:02:44]} 15. g3 {[%clk 0:02:39]}  Ne4 {[%clk 0:02:43]} 16. g4 {[%clk 0:02:21]}  Bg6 {[%clk 0:02:37]} 17. Kg2 {[%clk 0:02:17]}  f5 {[%clk 0:02:29]} 18. g5 {[%clk 0:02:11]}  Bh5 {[%clk 0:02:20]} 19. Bxe4 {[%clk 0:01:58]}  fxe4 {[%clk 0:02:17]} 0-1


[Site "https://www.chess.com"]

[Event "Titled Tuesday Blitz March 14 Early 2023"]
[White "Bongo Akanga Ndjila, Barthelemy"]
[Black "Matutururu, Maxman"]
[WhiteFideId "10609431"]
[BlackFideId "11004487"]
[WhiteElo "1768"]
[BlackElo "2443"]
[Result "0-1"]
[Round "04"]
[TimeControl "180+2"]
[Date "2023.03.14"]
[WhiteClock "0:00:05"]
[BlackClock "0:00:59"]

1. d4 {[%clk 0:02:59]}  Nf6 {[%clk 0:02:53]} 2. c4 {[%clk 0:02:59]}  e6 {[%clk 0:02:51]} 3. Nf3 {[%clk 0:02:57]}  b6 {[%clk 0:02:48]} 4. a3 {[%clk 0:02:56]}  Bb7 {[%clk 0:02:47]} 5. Nc3 {[%clk 0:02:56]}  d5 {[%clk 0:02:47]} 6. cxd5 {[%clk 0:02:56]}  exd5 {[%clk 0:02:47]} 7. Bg5 {[%clk 0:02:51]}  Be7 {[%clk 0:02:45]} 8. e3 {[%clk 0:02:47]}  O-O {[%clk 0:02:44]} 9. Bd3 {[%clk 0:02:45]}  Nbd7 {[%clk 0:02:43]} 10. O-O {[%clk 0:02:44]}  a6 {[%clk 0:02:44]} 11. Rc1 {[%clk 0:02:43]}  h6 {[%clk 0:02:43]} 12. Bf4 {[%clk 0:02:42]}  c5 {[%clk 0:02:41]} 13. Bf5 {[%clk 0:02:38]}  c4 {[%clk 0:02:39]} 14. h3 {[%clk 0:02:36]}  b5 {[%clk 0:02:39]} 15. Qe2 {[%clk 0:02:26]}  Re8 {[%clk 0:02:37]} 16. Rfd1 {[%clk 0:02:23]}  Nb6 {[%clk 0:02:37]} 17. Qf1 {[%clk 0:02:18]}  Bc8 {[%clk 0:02:34]} 18. Bb1 {[%clk 0:02:16]}  Bb7 {[%clk 0:02:33]} 19. Re1 {[%clk 0:02:14]}  Ne4 {[%clk 0:02:32]} 20. Ne5 {[%clk 0:02:11]}  Nxc3 {[%clk 0:02:27]} 21. Rxc3 {[%clk 0:02:04]}  b4 {[%clk 0:02:27]} 22. Rcc1 {[%clk 0:02:03]}  bxa3 {[%clk 0:02:27]} 23. bxa3 {[%clk 0:02:04]}  Bxa3 {[%clk 0:02:26]} 24. Rc2 {[%clk 0:02:01]}  a5 {[%clk 0:02:21]} 25. Ra2 {[%clk 0:01:58]}  Bb4 {[%clk 0:02:20]} 26. Rd1 {[%clk 0:01:52]}  Rc8 {[%clk 0:02:16]} 27. Rc1 {[%clk 0:01:51]}  Nd7 {[%clk 0:02:08]} 28. Nxd7 {[%clk 0:01:47]}  Qxd7 {[%clk 0:02:08]} 29. g4 {[%clk 0:01:43]}  Ba6 {[%clk 0:02:08]} 30. Bf5 {[%clk 0:01:42]}  Re6 {[%clk 0:02:04]} 31. Qg2 {[%clk 0:01:28]}  c3 {[%clk 0:01:58]} 32. Bxe6 {[%clk 0:01:14]}  Qxe6 {[%clk 0:01:52]} 33. Qg3 {[%clk 0:01:09]}  Bc4 {[%clk 0:01:49]} 34. Rac2 {[%clk 0:01:05]}  Bb3 {[%clk 0:01:48]} 35. g5 {[%clk 0:01:00]}  Bxc2 {[%clk 0:01:46]} 36. Rxc2 {[%clk 0:01:00]}  Qg6 {[%clk 0:01:44]} 37. Rc1 {[%clk 0:00:59]}  h5 {[%clk 0:01:43]} 38. h4 {[%clk 0:00:51]}  Ba3 {[%clk 0:01:42]} 39. Qh3 {[%clk 0:00:43]}  Rc6 {[%clk 0:01:37]} 40. Ra1 {[%clk 0:00:35]}  c2 {[%clk 0:01:35]} 41. e4 {[%clk 0:00:35]}  c1=Q+ {[%clk 0:01:27]} 42. Bxc1 {[%clk 0:00:30]}  Bxc1 {[%clk 0:01:27]} 43. Rxa5 {[%clk 0:00:27]}  Qxe4 {[%clk 0:01:23]} 44. Qd7 {[%clk 0:00:13]}  Qg4+ {[%clk 0:01:13]} 45. Qxg4 {[%clk 0:00:11]}  hxg4 {[%clk 0:01:14]} 46. Kg2 {[%clk 0:00:11]}  Rd6 {[%clk 0:01:02]} 47. Kg3 {[%clk 0:00:11]}  Bb2 {[%clk 0:00:59]} 48. Ra4 {[%clk 0:00:09]}  Re6 {[%clk 0:00:59]} 49. Kxg4 {[%clk 0:00:09]}  Re4+ {[%clk 0:00:58]} 50. Kg3 {[%clk 0:00:07]}  Bxd4 {[%clk 0:00:58]} 51. f3 {[%clk 0:00:07]}  Be5+ {[%clk 0:00:58]} 52. f4 {[%clk 0:00:05]}  Bxf4+ {[%clk 0:00:58]} 53. Kf3 {[%clk 0:00:05]}  Rxa4 {[%clk 0:00:59]} 0-1


[Site "https://www.chess.com"]

[Event "Titled Tuesday Blitz March 14 Early 2023"]
[White "Akhmedinov, Satbek"]
[Black "Larina, Maria"]
[WhiteFideId "13714287"]
[BlackFideId "24113182"]
[WhiteElo "2090"]
[BlackElo "1848"]
[Result "1-0"]
[Round "04"]
[TimeControl "180+2"]
[Date "2023.03.14"]
[WhiteClock "0:02:03"]
[BlackClock "0:00:45"]

1. e4 {[%clk 0:03:00]}  c6 {[%clk 0:02:58]} 2. d4 {[%clk 0:03:00]}  d5 {[%clk 0:02:57]} 3. exd5 {[%clk 0:03:01]}  cxd5 {[%clk 0:02:56]} 4. c4 {[%clk 0:03:02]}  Nf6 {[%clk 0:02:55]} 5. Nc3 {[%clk 0:03:03]}  e6 {[%clk 0:02:56]} 6. Nf3 {[%clk 0:03:03]}  Be7 {[%clk 0:02:56]} 7. Bd3 {[%clk 0:03:02]}  O-O {[%clk 0:02:55]} 8. O-O {[%clk 0:03:02]}  dxc4 {[%clk 0:02:56]} 9. Bxc4 {[%clk 0:03:02]}  Nc6 {[%clk 0:02:56]} 10. Bg5 {[%clk 0:03:00]}  h6 {[%clk 0:02:55]} 11. Bh4 {[%clk 0:02:59]}  a6 {[%clk 0:02:55]} 12. a4 {[%clk 0:02:55]}  Nd5 {[%clk 0:02:40]} 13. Bxd5 {[%clk 0:02:49]}  Bxh4 {[%clk 0:02:31]} 14. Bxc6 {[%clk 0:02:49]}  bxc6 {[%clk 0:02:24]} 15. Ne5 {[%clk 0:02:49]}  Bd7 {[%clk 0:02:00]} 16. Ne4 {[%clk 0:02:44]}  Qc7 {[%clk 0:01:51]} 17. Qg4 {[%clk 0:02:31]}  Be7 {[%clk 0:01:49]} 18. Qg3 {[%clk 0:02:29]}  Rab8 {[%clk 0:01:29]} 19. Rac1 {[%clk 0:02:22]}  Be8 {[%clk 0:01:26]} 20. Nxc6 {[%clk 0:02:20]}  Qxg3 {[%clk 0:01:13]} 21. Nxe7+ {[%clk 0:02:19]}  Kh7 {[%clk 0:01:13]} 22. fxg3 {[%clk 0:02:18]}  Rxb2 {[%clk 0:01:03]} 23. Rc8 {[%clk 0:02:14]}  Rb4 {[%clk 0:01:00]} 24. Nd6 {[%clk 0:02:09]}  Rxd4 {[%clk 0:00:59]} 25. Nxe8 {[%clk 0:02:07]}  Rh8 {[%clk 0:00:56]} 26. Rxf7 {[%clk 0:02:04]}  Rg4 {[%clk 0:00:45]} 27. Nf6# {[%clk 0:02:03]} 1-0


[Site "https://www.chess.com"]

[Event "Titled Tuesday Blitz March 14 Early 2023"]
[White "Sadubayev, Airat"]
[Black "Zaksaite, Salomeja"]
[WhiteFideId "13713264"]
[BlackFideId "12801496"]
[WhiteElo "2129"]
[BlackElo "2059"]
[Result "0-1"]
[Round "04"]
[TimeControl "180+2"]
[Date "2023.03.14"]
[WhiteClock "0:00:02"]
[BlackClock "0:00:03"]

1. d4 {[%clk 0:03:00]}  Nf6 {[%clk 0:02:58]} 2. c4 {[%clk 0:03:01]}  g6 {[%clk 0:02:58]} 3. Nc3 {[%clk 0:03:00]}  Bg7 {[%clk 0:02:57]} 4. e4 {[%clk 0:03:00]}  d6 {[%clk 0:02:57]} 5. f3 {[%clk 0:03:00]}  O-O {[%clk 0:02:52]} 6. Be3 {[%clk 0:03:00]}  c5 {[%clk 0:02:53]} 7. Nge2 {[%clk 0:02:56]}  b6 {[%clk 0:02:29]} 8. Qd2 {[%clk 0:02:51]}  cxd4 {[%clk 0:02:26]} 9. Nxd4 {[%clk 0:02:50]}  Bb7 {[%clk 0:02:26]} 10. Be2 {[%clk 0:02:44]}  Nc6 {[%clk 0:02:25]} 11. O-O {[%clk 0:02:36]}  Nxd4 {[%clk 0:02:24]} 12. Bxd4 {[%clk 0:02:35]}  Rc8 {[%clk 0:02:19]} 13. Nd5 {[%clk 0:02:28]}  e5 {[%clk 0:02:05]} 14. Be3 {[%clk 0:02:24]}  Nxd5 {[%clk 0:02:04]} 15. cxd5 {[%clk 0:02:25]}  f5 {[%clk 0:01:57]} 16. Rac1 {[%clk 0:02:17]}  Qd7 {[%clk 0:01:56]} 17. a4 {[%clk 0:02:12]}  Rxc1 {[%clk 0:01:55]} 18. Rxc1 {[%clk 0:02:08]}  Rc8 {[%clk 0:01:41]} 19. Bb5 {[%clk 0:02:01]}  Qd8 {[%clk 0:01:26]} 20. Bc6 {[%clk 0:01:57]}  Ba6 {[%clk 0:01:15]} 21. b4 {[%clk 0:01:50]}  Rc7 {[%clk 0:01:05]} 22. b5 {[%clk 0:01:44]}  Bc8 {[%clk 0:01:04]} 23. Bg5 {[%clk 0:01:42]}  Bf6 {[%clk 0:00:51]} 24. Be3 {[%clk 0:01:26]}  fxe4 {[%clk 0:00:38]} 25. fxe4 {[%clk 0:01:27]}  Rf7 {[%clk 0:00:30]} 26. Rf1 {[%clk 0:01:23]}  Bg7 {[%clk 0:00:26]} 27. Rxf7 {[%clk 0:01:16]}  Kxf7 {[%clk 0:00:26]} 28. Bg5 {[%clk 0:01:13]}  Bf6 {[%clk 0:00:25]} 29. Qf2 {[%clk 0:01:12]}  Kg7 {[%clk 0:00:23]} 30. Bd2 {[%clk 0:01:07]}  Bg5 {[%clk 0:00:22]} 31. Be8 {[%clk 0:00:49]}  Bxd2 {[%clk 0:00:10]} 32. Qf7+ {[%clk 0:00:48]}  Kh6 {[%clk 0:00:10]} 33. Qf8+ {[%clk 0:00:45]}  Kg5 {[%clk 0:00:10]} 34. g3 {[%clk 0:00:26]}  Be3+ {[%clk 0:00:09]} 35. Kg2 {[%clk 0:00:26]}  Qc7 {[%clk 0:00:02]} 36. h4+ {[%clk 0:00:22]}  Kh5 {[%clk 0:00:02]} 37. Qf3+ {[%clk 0:00:17]}  Bg4 {[%clk 0:00:01]} 38. Qxe3 {[%clk 0:00:16]}  Qc2+ {[%clk 0:00:02]} 39. Qf2 {[%clk 0:00:13]}  Qxf2+ {[%clk 0:00:01]} 40. Kxf2 {[%clk 0:00:13]}  Bd1 {[%clk 0:00:02]} 41. Ke3 {[%clk 0:00:08]}  Bxa4 {[%clk 0:00:01]} 42. Bc6 {[%clk 0:00:07]}  Kg4 {[%clk 0:00:01]} 43. Kf2 {[%clk 0:00:08]}  g5 {[%clk 0:00:01]} 44. hxg5 {[%clk 0:00:07]}  Kxg5 {[%clk 0:00:02]} 45. Kf3 {[%clk 0:00:07]}  h6 {[%clk 0:00:03]} 46. Kf2 {[%clk 0:00:04]}  Bc2 {[%clk 0:00:04]} 47. Kf3 {[%clk 0:00:04]}  Bb1 {[%clk 0:00:04]} 48. Ke3 {[%clk 0:00:04]}  Bc2 {[%clk 0:00:04]} 49. Kf3 {[%clk 0:00:04]}  Bd3 {[%clk 0:00:05]} 50. Bd7 {[%clk 0:00:04]}  a5 {[%clk 0:00:04]} 51. bxa6 {[%clk 0:00:04]}  Bxa6 {[%clk 0:00:04]} 52. Ba4 {[%clk 0:00:04]}  b5 {[%clk 0:00:04]} 53. Bc2 {[%clk 0:00:04]}  b4 {[%clk 0:00:04]} 54. Bb3 {[%clk 0:00:04]}  Bd3 {[%clk 0:00:04]} 55. Ke3 {[%clk 0:00:04]}  Bb1 {[%clk 0:00:05]} 56. Kf3 {[%clk 0:00:04]}  h5 {[%clk 0:00:04]} 57. Ke3 {[%clk 0:00:04]}  Kg4 {[%clk 0:00:04]} 58. Kf2 {[%clk 0:00:02]}  h4 {[%clk 0:00:03]} 59. gxh4 {[%clk 0:00:01]}  Kxh4 {[%clk 0:00:03]} 60. Ke3 {[%clk 0:00:02]}  Kg3 {[%clk 0:00:03]} 0-1


[Site "https://www.chess.com"]

[Event "Titled Tuesday Blitz March 14 Early 2023"]
[White "Zaichenko, Daria"]
[Black "Odegov, Artem"]
[WhiteFideId "4197453"]
[BlackFideId "34183644"]
[WhiteElo "2039"]
[BlackElo "2300"]
[Result "1-0"]
[Round "04"]
[TimeControl "180+2"]
[Date "2023.03.14"]
[WhiteClock "0:00:10"]
[BlackClock "0:00:04"]

1. e4 {[%clk 0:03:00]}  e6 {[%clk 0:02:58]} 2. d4 {[%clk 0:03:00]}  d5 {[%clk 0:02:58]} 3. Bd3 {[%clk 0:03:00]}  dxe4 {[%clk 0:02:58]} 4. Bxe4 {[%clk 0:03:00]}  Nf6 {[%clk 0:02:59]} 5. Bf3 {[%clk 0:03:01]}  c5 {[%clk 0:03:00]} 6. c3 {[%clk 0:03:01]}  Nc6 {[%clk 0:03:00]} 7. Ne2 {[%clk 0:03:00]}  cxd4 {[%clk 0:02:50]} 8. cxd4 {[%clk 0:02:49]}  Be7 {[%clk 0:02:50]} 9. Nbc3 {[%clk 0:02:48]}  O-O {[%clk 0:02:49]} 10. O-O {[%clk 0:02:48]}  Bd7 {[%clk 0:02:48]} 11. Bf4 {[%clk 0:02:37]}  Rc8 {[%clk 0:02:47]} 12. h3 {[%clk 0:02:33]}  Qa5 {[%clk 0:02:40]} 13. Ng3 {[%clk 0:02:31]}  Rfd8 {[%clk 0:02:38]} 14. Nce2 {[%clk 0:02:19]}  Nb4 {[%clk 0:02:34]} 15. a3 {[%clk 0:02:14]}  Nbd5 {[%clk 0:02:33]} 16. Bd2 {[%clk 0:02:12]}  Qb6 {[%clk 0:02:32]} 17. b4 {[%clk 0:02:03]}  Bb5 {[%clk 0:02:31]} 18. Re1 {[%clk 0:01:50]}  Bc4 {[%clk 0:02:08]} 19. Ne4 {[%clk 0:01:39]}  Nxe4 {[%clk 0:02:02]} 20. Bxe4 {[%clk 0:01:39]}  Bf6 {[%clk 0:02:02]} 21. Bxd5 {[%clk 0:01:27]}  Bxd5 {[%clk 0:02:00]} 22. Be3 {[%clk 0:01:23]}  Qd6 {[%clk 0:01:51]} 23. Nf4 {[%clk 0:01:20]}  a6 {[%clk 0:01:46]} 24. Qg4 {[%clk 0:01:17]}  g6 {[%clk 0:01:40]} 25. Nh5 {[%clk 0:01:14]}  Bh8 {[%clk 0:01:38]} 26. Bf4 {[%clk 0:01:04]}  Qe7 {[%clk 0:01:07]} 27. Be5 {[%clk 0:00:46]}  Rc4 {[%clk 0:01:05]} 28. Nf4 {[%clk 0:00:29]}  Bxe5 {[%clk 0:00:59]} 29. Rxe5 {[%clk 0:00:29]}  Rxd4 {[%clk 0:00:57]} 30. Nxg6 {[%clk 0:00:29]}  Rxg4 {[%clk 0:00:43]} 31. Nxe7+ {[%clk 0:00:29]}  Kf8 {[%clk 0:00:44]} 32. hxg4 {[%clk 0:00:29]}  Kxe7 {[%clk 0:00:44]} 33. Rc1 {[%clk 0:00:26]}  Kd6 {[%clk 0:00:44]} 34. Rh5 {[%clk 0:00:26]}  Rh8 {[%clk 0:00:43]} 35. f3 {[%clk 0:00:20]}  b6 {[%clk 0:00:39]} 36. Kf2 {[%clk 0:00:21]}  f6 {[%clk 0:00:31]} 37. f4 {[%clk 0:00:20]}  Rg8 {[%clk 0:00:30]} 38. Kg3 {[%clk 0:00:19]}  Rg7 {[%clk 0:00:27]} 39. Rc3 {[%clk 0:00:17]}  e5 {[%clk 0:00:16]} 40. Rh6 {[%clk 0:00:17]}  Be6 {[%clk 0:00:15]} 41. Rxf6 {[%clk 0:00:15]}  Rxg4+ {[%clk 0:00:15]} 42. Kf3 {[%clk 0:00:14]}  Rg7 {[%clk 0:00:08]} 43. f5 {[%clk 0:00:14]}  Kd5 {[%clk 0:00:05]} 44. fxe6 {[%clk 0:00:12]}  e4+ {[%clk 0:00:04]} 45. Kf4 {[%clk 0:00:12]}  Kd4 {[%clk 0:00:03]} 46. Re3 {[%clk 0:00:12]}  Kd5 {[%clk 0:00:02]} 47. Rxe4 {[%clk 0:00:11]}  Re7 {[%clk 0:00:03]} 48. Rf7 {[%clk 0:00:11]}  Kd6 {[%clk 0:00:03]} 49. Rxe7 {[%clk 0:00:10]}  Kxe7 {[%clk 0:00:04]} 1-0


[Site "https://www.chess.com"]